Cogmind - Beta 12 @@@ ROGUE MODE // 2023.06.04 @ 19:46:03 Player: Mr Goldstein Result: Exoskeleton Destroyed Performance ------------- Evolutions (9) 4500 Regions Visited (22) 4400 Robots Destroyed (67) 335 Value Destroyed (1755) 1755 Prototype IDs (28) 560 Alien Tech Used (9) 1800 Bonus (21724) 21724 TOTAL SCORE: 35074 Bonus ------- Triggered Max Security 3000 High Alert Combat Kills 446 Follower Combat Kills 1536 Met Data Miner 300 Built Enhanced Grunts 300 Met R17 at Cetus 500 Used Core Reset Matrix 3000 Met R17 at Research 2000 Scanned by Researcher 500 Integrated Exoskeleton 5000 Met MAIN.C 5000 Met Architect 300 Friendly Fire -158 Cogmind --------- Core Integrity 0/1600 Matter 198/300 Energy 50/440 System Corruption 0% Temperature Cool (0) Movement Walking (30) Location -1/Access_0 Parts ------- > --- POWER (2) -------- Particle Reactor > --- PROPULSION (5) --- High-density Centrium Leg Sigix Exoskeleton > --- UTILITY (5) ------ Power Amplifier Core Analyzer Armor Integrity Analyzer Advanced Reaction Control System Advanced Force Field > --- WEAPON (4) ------- Sigix Broadsword > --- INVENTORY (5) ---- Sigix Sheargun Sigix Sheargun Peak State ------------ > --- POWER ------------ Vortex Chain Reactor > --- PROPULSION ------- Improved VSS Leg Centrium Leg Sigix Exoskeleton > --- UTILITY ---------- Power Amplifier Core Analyzer Armor Integrity Analyzer Advanced Reaction Control System Advanced Force Field > --- WEAPON ----------- Sigix Sheargun Sigix Broadsword > --- INVENTORY -------- Particle Reactor High-powered Transdimensional Reconstructor Sigix Sheargun [Rating: 257] Favorites ----------- Power Particle Reactor Engine Light Angular Momentum Engine Power Core Enhanced Nuclear Core Reactor Particle Reactor Propulsion Field Propulsion Drive Treads Enhanced Armored Heavy Treads Leg Sigix Exoskeleton Flight Unit Field Propulsion Drive Utility Hacking Suite Device Advanced Heat Sink Storage Small Storage Unit Processor Melee Analysis Suite Hackware Hacking Suite Protection Power Shielding Weapon Sigix Broadsword Energy Gun Sigix Sheargun Energy Cannon Enhanced Nova Cannon Ballistic Gun Autogun Ballistic Cannon Heavy Hardcell Cannon Launcher Long-range Missile Launcher Slashing Weapon Sigix Broadsword Build | -11 -10 -10 -9 -9 -8 -7 -7 -7 -7 -6 -6 -5 -5 -5 -4 -3 -3 -3 -2 -1 -1 -1 ------- Run | Jun Mat Min Mat Min Mat Fac Low Low Dat Pro Fac Fac Ext Cet Fac Res Qua Sec Res Acc Com Ac0 Slots Evolved 18 | . . . 2 . 2 2 . . . . 2 2 . . 2 2 . . 2 2 . . Power 2 | . . . . . . . . . . . 1 . . . . . . . . 1 . . Propulsion 7 | . . . 1 . 1 1 . . . . 1 1 . . 1 1 . . . . . . Utility 8 | . . . 1 . 1 1 . . . . . 1 . . 1 1 . . 2 . . . Weapon 1 | . . . . . . . . . . . . . . . . . . . . 1 . . Parts Attached 154 | . 7 1 2 6 5 15 3 . . 1 18 5 15 9 7 21 4 7 6 9 13 . Power 16 | . . . . 1 . 1 . . . . 1 1 1 1 . 3 . 1 1 3 2 . Engine 2 | . . . . 1 . . . . . . . . . 1 . . . . . . . . Core 2 | . . . . . . 1 . . . . 1 . . . . . . . . . . . Reactor 12 | . . . . . . . . . . . . 1 1 . . 3 . 1 1 3 2 . Propulsion 61 | . 4 . 1 1 2 9 1 . . 1 10 3 5 4 5 6 2 . 2 . 5 . Treads 2 | . . . . . . . . . . . . . . . . . . . . . 2 . Leg 5 | . . . . . . . . . . . . . . . . . . . 2 . 3 . Wheel . | . . . . . . . . . . . . . . . . . . . . . . . Hover . | . . . . . . . . . . . . . . . . . . . . . . . Flight 54 | . 4 . 1 1 2 9 1 . . 1 10 3 5 4 5 6 2 . . . . . Utility 40 | . 2 . 1 1 1 2 2 . . . 5 1 . 1 2 6 1 5 3 5 2 . Device 13 | . . . . . . . . . . . 1 . . 1 . 1 . 1 3 4 2 . Storage 1 | . 1 . . . . . . . . . . . . . . . . . . . . . Processor 8 | . . . . . . . 1 . . . 2 . . . 1 . . 3 . 1 . . Hackware 11 | . . . 1 . 1 2 1 . . . 1 1 . . 1 3 . . . . . . Protection 7 | . 1 . . 1 . . . . . . 1 . . . . 2 1 1 . . . . Artifact . | . . . . . . . . . . . . . . . . . . . . . . . Weapon 37 | . 1 1 . 3 2 3 . . . . 2 . 9 3 . 6 1 1 . 1 4 . Energy Gun 2 | . . . . . . . . . . . . . . . . . . . . 1 1 . Energy Cannon 1 | . . . . . . . . . . . . . . . . . . . . . 1 . Ballistic Gun 1 | . . . . . . . . . . . . . . 1 . . . . . . . . Ballistic Cannon 2 | . . . . . . . . . . . . . . . . . . . . . 2 . Launcher 14 | . 1 1 . 2 2 2 . . . . . . 3 1 . 2 . . . . . . Special Weapon . | . . . . . . . . . . . . . . . . . . . . . . . Impact Weapon . | . . . . . . . . . . . . . . . . . . . . . . . Slashing Weapon 17 | . . . . 1 . 1 . . . . 2 . 6 1 . 4 1 1 . . . . Piercing Weapon . | . . . . . . . . . . . . . . . . . . . . . . . Special Melee Weapon . | . . . . . . . . . . . . . . . . . . . . . . . Unidentified Prototypes 19 | . 1 . . . . 3 . . . . 1 . . . . 4 2 . . . 8 . Corrupted Parts 1 | . . . . 1 . . . . . . . . . . . . . . . . . . System Corruption 4 | . . . . 4 . . . . . . . . . . . . . . . . . . Parts Lost 48 | . . . . 1 1 8 1 . . 4 3 . 12 3 . 10 4 1 . . . . Power 7 | . . . . . . 1 . . . . . . 1 1 . 3 . 1 . . . . Propulsion 27 | . . . . . . 2 . . . 2 3 . 9 1 . 6 4 . . . . . Utility 11 | . . . . 1 1 2 1 . . 2 . . 2 1 . 1 . . . . . . Weapon 3 | . . . . . . 3 . . . . . . . . . . . . . . . . Highest Loss Streak 10 | . . . . 1 1 6 1 . . 3 3 . 10 2 . 4 4 1 . . . . To Critical Strikes 2 | . . . . . . . . . . . . . . 2 . . . . . . . . Average Slot Usage (%) 68 | . 38 57 53 76 76 72 71 76 76 70 66 92 76 53 73 77 68 48 60 66 65 56 Engine 1 | . . . . 9 9 1 . . . . . . . 1 5 2 . . . . . . Core 1 | . . . . . . 5 7 7 7 7 6 8 3 . . . . . . . . . Reactor 3 | . . . . . . . . . . . . 2 3 1 . 4 4 2 6 9 6 6 Leg 4 | . . . . . . . . . . . . . . . . . . 5 19 18 16 12 Flight 21 | . 25 28 25 33 36 35 38 38 38 34 33 39 30 23 35 30 19 8 . . . . Device 7 | . . . . . . . . . . . 5 5 5 1 5 3 4 6 20 19 17 18 Storage 2 | . 2 14 11 11 9 7 7 7 7 7 6 5 3 . . . . . . . . . Processor 6 | . . . . . . . . 7 7 7 7 11 7 5 8 7 4 4 7 10 12 12 Hackware 8 | . . . 5 11 9 13 8 7 7 5 . 10 11 11 12 16 23 9 . . . . Protection 2 | . 10 14 11 11 13 7 7 7 7 6 . . . . . 1 4 1 . . . . Slashing Weapon 4 | . . . . . . . . . . . 3 5 6 4 5 6 6 7 7 6 6 6 Naked Turns 9 | . 8 . . . . . . . . . . . . . . . . 1 . . . . Heaviest Build 58 | . 8 8 8 12 12 17 14 14 14 14 27 31 35 20 14 52 36 44 45 58 54 47 Greatest Support 68 | 3 10 10 14 14 19 28 28 28 28 28 33 44 44 35 54 68 68 60 60 60 60 60 Greatest Overweight (x) . | . . . . . . . . . . . . . . . . . . . . . . . Average Overweight (x) . | . . . . . . . . . . . . . . . . . . . . . . . Largest Inventory Capacity 8 | 5 8 8 8 8 8 8 8 8 8 8 8 8 8 5 5 5 5 5 5 5 5 5 Average Capacity 6 | 5 5 8 8 8 8 8 8 8 8 8 8 8 6 5 5 5 5 5 5 5 5 5 Most Carried 8 | 1 5 7 8 8 8 7 6 6 6 6 8 8 8 5 5 5 5 5 5 5 3 2 Average Carried 4 | . 2 6 7 7 7 3 5 6 6 5 4 7 6 4 4 4 3 4 4 4 2 2 Final Capacity 8 | 5 8 8 8 8 8 8 8 8 8 8 8 8 5 5 5 5 5 5 5 5 5 5 Final Carried 8 | 1 5 7 8 8 8 5 6 6 6 5 8 8 5 5 4 4 3 4 5 3 2 2 Class Distribution -------------------- 36% | Hacker-Sprinter 29% | Alien-Sigix 11% | Sprinter 8% | Mutant 6% | Commander-Sprinter 4% | Commander-Mutant Dominant Class ---------------- Mutant | -10/Materials Mutant | -10/Mines Mutant | -9/Materials Mutant | -9/Mines Sprinter | -8/Materials Hacker-Sprinter | -7/Factory Sprinter | -7/Lower Caves Derelict-Sprinter | -7/Lower Caves Derelict-Sprinter | -7/Data Miner Sprinter | -6/Proximity Caves Sprinter | -6/Factory Hacker-Sprinter | -5/Factory Hacker-Sprinter | -5/Extension Commander-Sprinter | -5/Cetus Hacker-Sprinter | -4/Factory Hacker-Sprinter | -3/Research Hacker-Sprinter | -3/Quarantine Alien-Sigix | -3/Section 7 Alien-Sigix | -2/Research Alien-Sigix | -1/Access Alien-Sigix | -1/Command Alien-Sigix | -1/Access_0 Resources | -11 -10 -10 -9 -9 -8 -7 -7 -7 -7 -6 -6 -5 -5 -5 -4 -3 -3 -3 -2 -1 -1 -1 ----------- Run | Jun Mat Min Mat Min Mat Fac Low Low Dat Pro Fac Fac Ext Cet Fac Res Qua Sec Res Acc Com Ac0 Matter Collected 1969 | 200 17 28 . 157 65 109 123 38 . . 23 133 299 170 38 212 . . 25 296 13 23 Remotely . | . . . . . . . . . . . . . . . . . . . . . . . Salvage Created 2344 | . 17 28 . 24 12 50 . . . . 23 133 763 38 38 452 . . 25 705 36 . Parts 123 | . 4 4 . 9 4 3 . . . . 1 3 31 4 1 18 . . 4 34 3 . Haulers Intercepted 4 | . . . . . . . . . . . . . . . . 3 . . . 1 . . Recyclers Shooed 1 | . . . . . . 1 . . . . . . . . . . . . . . . . Parts Field Recycled . | . . . . . . . . . . . . . . . . . . . . . . . Retrieved Matter . | . . . . . . . . . . . . . . . . . . . . . . . Parts Self-Destructed 1 | . . . . . . . . . . 1 . . . . . . . . . . . . Prevented . | . . . . . . . . . . . . . . . . . . . . . . . Kills | -11 -10 -10 -9 -9 -8 -7 -7 -7 -7 -6 -6 -5 -5 -5 -4 -3 -3 -3 -2 -1 -1 -1 ------- Run | Jun Mat Min Mat Min Mat Fac Low Low Dat Pro Fac Fac Ext Cet Fac Res Qua Sec Res Acc Com Ac0 Combat Hostiles Destroyed 37 | . 3 3 . 6 4 5 . . . . . . 11 1 . 1 . . . 3 . . Melee 10 | . . . . . . . . . . . . . 5 1 . 1 . . . 3 . . AOE 27 | . 3 3 . 6 4 5 . . . . . . 6 . . . . . . . . . Classes Destroyed 15 | . 1 . . . . 1 . . . . 1 1 8 . . 1 . . 1 1 . . Worker 13 | . . . . . . . . . . . 1 . 2 . 2 4 . . . 4 . . Builder 4 | . . . . . . . . . . . . . 2 . . . . . . 2 . . Hauler 4 | . . . . . . . . . . . . . . . . 3 . . . 1 . . Recycler 3 | . . . . . . . . . . . . 1 . . . . . . . 2 . . Mechanic 1 | . . . . . . . . . . . . . 1 . . . . . . . . . Operator 1 | . . . . . . . . . . . . . . . . . . . 1 . . . Watcher 3 | . . . . . . . . . . . . . 1 1 . . . . . . 1 . Swarmer 21 | . 3 3 . 6 4 4 . . . . . . . 1 . . . . . . . . Grunt 6 | . . . . . . . . . . . . . 6 . . . . . . . . . Sentry 2 | . . . . . . . . . . . . . 2 . . . . . . . . . Demolisher 1 | . . . . . . . . . . . . . 1 . . . . . . . . . Hunter 3 | . . . . . . 1 . . . . . . . . . 1 . . . 1 . . Programmer 2 | . . . . . . . . . . . . . . . . . . . . 2 . . Behemoth 2 | . . . . . . . . . . . . . 2 . . . . . . . . . Savage 1 | . . . . . . . . . . . . . 1 . . . . . . . . . Best Kill Streak 7 | . 3 3 . 3 4 5 . . . . 1 1 7 1 2 2 . . 1 5 1 . Combat Bots Only 5 | . 3 3 . 3 4 5 . . . . . . 3 1 . 1 . . . 1 . . Max Kills in Single Turn 3 | . 3 3 . 2 3 2 . . . . 1 1 2 1 1 1 . . 1 1 1 . Gunslinging . | . . . . . . . . . . . . . . . . . . . . . . . Exploded 3 | . 3 3 . 2 3 2 . . . . . . 2 . . . . . . . . . Melee 1 | . . . . . . . . . . . . . 1 1 . 1 . . . 1 . . Uniques/NPCs Destroyed . | . . . . . . . . . . . . . . . . . . . . . . . Combat | -11 -10 -10 -9 -9 -8 -7 -7 -7 -7 -6 -6 -5 -5 -5 -4 -3 -3 -3 -2 -1 -1 -1 -------- Run | Jun Mat Min Mat Min Mat Fac Low Low Dat Pro Fac Fac Ext Cet Fac Res Qua Sec Res Acc Com Ac0 Damage Taken 9914 | . 45 40 53 115 57 433 31 . . 313 164 19 833 456 208 916 669 799 57 921 1502 2283 Core 2704 | . 24 . 12 21 7 123 18 . . 120 49 . 170 179 125 126 88 189 17 256 475 705 Absorbed by Shields 3366 | . . . . . . . . . . . . . 84 95 . . . 136 61 856 935 1199 Redirected to Shielding 30 | . . . . . 5 15 . . . 10 . . . . . . . . . . . . Regen/Repaired (Parts) 489 | . . . . . . . . . . . . . . . . . 165 183 7 29 46 59 Core Remaining (%) 84 | 100 . 90 . 91 98 . . . . 62 94 . . 65 89 . . 61 98 . . . Volleys Fired 31 | . 1 1 . 4 2 5 . . . . . . 12 4 . . . . . 1 1 . Largest 1 | . 1 1 . 1 1 1 . . . . . . 1 1 . . . . . 1 1 . Hottest 100 | . 30 30 . 36 36 36 . . . . . . 43 43 . . . . . 100 100 . Shots Fired 31 | . 1 1 . 4 2 5 . . . . . . 12 4 . . . . . 1 1 . Gun 2 | . . . . . . . . . . . . . . . . . . . . 1 1 . Cannon . | . . . . . . . . . . . . . . . . . . . . . . . Launcher 29 | . 1 1 . 4 2 5 . . . . . . 12 4 . . . . . . . . Special . | . . . . . . . . . . . . . . . . . . . . . . . Kinetic . | . . . . . . . . . . . . . . . . . . . . . . . Thermal . | . . . . . . . . . . . . . . . . . . . . . . . Explosive 29 | . 1 1 . 4 2 5 . . . . . . 12 4 . . . . . . . . Electromagnetic . | . . . . . . . . . . . . . . . . . . . . . . . Slashing 2 | . . . . . . . . . . . . . . . . . . . . 1 1 . Robot Hit Streak 9 | . . . . . . . . . . . . . 6 9 . . . . . . . . Robot Miss Streak 2 | . . . . . . 2 . . . . . . 1 . . . . . . . . . Penetration Max . | . . . . . . . . . . . . . . . . . . . . . . . Secondary Targets . | . . . . . . . . . . . . . . . . . . . . . . . Shots Hit Robots 103 | . . . . . . . . . . . 1 2 31 7 3 19 . 1 1 19 10 9 Core Hits 91 | . 2 3 . 5 4 12 . . . . . 1 29 15 1 5 . . 1 8 2 3 Critical Kills . | . . . . . . . . . . . . . . . . . . . . . . . Critical Parts Destroyed . | . . . . . . . . . . . . . . . . . . . . . . . Critical Strikes 7 | . . . . . . . . . . . . . 3 1 . 3 . . . . . . Sever 7 | . . . . . . . . . . . . . 3 1 . 3 . . . . . . Melee Attacks 209 | . . . . . . 5 . . . . 8 9 28 4 8 28 5 8 14 44 26 22 Impact . | . . . . . . . . . . . . . . . . . . . . . . . Slashing 209 | . . . . . . 5 . . . . 8 9 28 4 8 28 5 8 14 44 26 22 Piercing . | . . . . . . . . . . . . . . . . . . . . . . . Sneak Attacks 26 | . . . . . . . . . . . 1 1 2 . 3 9 . . 1 9 . . Combat Hostiles 1 | . . . . . . . . . . . . . 1 . . . . . . . . . Follow-up Attacks 1 | . . . . . . . . . . . . . . . . 1 . . . . . . Damage Inflicted 14772 | . 121 63 . 415 266 752 . . . . 89 140 2410 729 277 1500 . 170 331 4665 1867 977 Guns . | . . . . . . . . . . . . . . . . . . . . . . . Cannons . | . . . . . . . . . . . . . . . . . . . . . . . Explosions 3445 | . 121 63 . 415 266 752 . . . . . . 1284 544 . . . . . . . . Melee 11307 | . . . . . . . . . . . 89 140 1126 185 277 1500 . 150 331 4665 1867 977 Ramming 20 | . . . . . . . . . . . . . . . . . . 20 . . . . Kinetic . | . . . . . . . . . . . . . . . . . . . . . . . Thermal 132 | . . . . . . 132 . . . . . . . . . . . . . . . . Explosive 3313 | . 121 63 . 415 266 620 . . . . . . 1284 544 . . . . . . . . Electromagnetic . | . . . . . . . . . . . . . . . . . . . . . . . Impact . | . . . . . . . . . . . . . . . . . . . . . . . Slashing 11307 | . . . . . . . . . . . 89 140 1126 185 277 1500 . 150 331 4665 1867 977 Piercing . | . . . . . . . . . . . . . . . . . . . . . . . Highest Corruption 5 | . . . . 4 . 4 4 4 4 5 2 . . . . 2 3 1 . . . . Average Corruption 2 | . . . . 4 . 3 4 4 4 4 2 . . . . 2 1 1 . . . . Corruption Purged . | . . . . . . . . . . . . . . . . . . . . . . . Corruption Blocked . | . . . . . . . . . . . . . . . . . . . . . . . Effects 20 | . . . . 1 . 6 3 2 . 5 . . . . . 1 . 2 . . . . Message Errors 7 | . . . . . . 1 1 . . 4 . . . . . . . 1 . . . . Matter Fused 5 | . . . . . . 1 2 . . 1 . . . . . . . 1 . . . . Energy Discharges 1 | . . . . . . 1 . . . . . . . . . . . . . . . . Parts Rejected 1 | . . . . . . 1 . . . . . . . . . . . . . . . . Parts Fused 1 | . . . . . . 1 . . . . . . . . . . . . . . . . Data Loss (minor) 3 | . . . . 1 . 1 . 1 . . . . . . . . . . . . . . Data Loss (major) 2 | . . . . . . . . 1 . . . . . . . 1 . . . . . . Overload Shots . | . . . . . . . . . . . . . . . . . . . . . . . Overflow Damage 2527 | . 30 . . 57 . 34 . . . . 49 61 115 6 111 256 . . . 1508 147 153 Projectiles . | . . . . . . . . . . . . . . . . . . . . . . . Explosions 145 | . 30 . . 57 . 34 . . . . . . 18 6 . . . . . . . . Melee 2382 | . . . . . . . . . . . 49 61 97 . 111 256 . . . 1508 147 153 Knockbacks . | . . . . . . . . . . . . . . . . . . . . . . . Impact . | . . . . . . . . . . . . . . . . . . . . . . . Kinetic . | . . . . . . . . . . . . . . . . . . . . . . . Secondary . | . . . . . . . . . . . . . . . . . . . . . . . Self-Inflicted Damage 16 | . . . . . . 16 . . . . . . . . . . . . . . . . Shots 1 | . . . . . . 1 . . . . . . . . . . . . . . . . Rammed . | . . . . . . . . . . . . . . . . . . . . . . . Targets Rammed 3 | . . . . . . . . . . . . . . . . . . 3 . . . . Kicked 3 | . . . . . . . . . . . . . . . . . . 3 . . . . Crushed . | . . . . . . . . . . . . . . . . . . . . . . . Highest Temperature 176 | . . . . 16 . 5 21 29 13 13 27 . 4 5 3 176 . . . . . . Average Temperature 21 | . . . . 5 . 2 10 14 6 3 12 . 4 5 3 51 . . . . . . Received Heat Transfer 1460 | . 24 . 9 48 9 9 18 . . 24 18 . 113 75 9 69 60 245 20 44 48 618 Siege Activations . | . . . . . . . . . . . . . . . . . . . . . . . Robots Corrupted . | . . . . . . . . . . . . . . . . . . . . . . . Combat Hostiles . | . . . . . . . . . . . . . . . . . . . . . . . Parts Fried . | . . . . . . . . . . . . . . . . . . . . . . . Impact Corruptions . | . . . . . . . . . . . . . . . . . . . . . . . Robots Melted . | . . . . . . . . . . . . . . . . . . . . . . . Combat Hostiles . | . . . . . . . . . . . . . . . . . . . . . . . Parts Melted 1 | . . . . . . . . . . . . . . . . 1 . . . . . . Heat Transferred 200 | . . . . . . 200 . . . . . . . . . . . . . . . . Parts Sabotaged . | . . . . . . . . . . . . . . . . . . . . . . . Parts Stolen . | . . . . . . . . . . . . . . . . . . . . . . . Parts Stripped . | . . . . . . . . . . . . . . . . . . . . . . . Power Chain Reactions . | . . . . . . . . . . . . . . . . . . . . . . . Missiles Intercepted . | . . . . . . . . . . . . . . . . . . . . . . . Alert | -11 -10 -10 -9 -9 -8 -7 -7 -7 -7 -6 -6 -5 -5 -5 -4 -3 -3 -3 -2 -1 -1 -1 ------- Run | Jun Mat Min Mat Min Mat Fac Low Low Dat Pro Fac Fac Ext Cet Fac Res Qua Sec Res Acc Com Ac0 Peak Influence 1907 | . 238 189 148 247 271 670 . . . . 242 181 973 1231 845 537 404 1690 1675 1907 1362 . Initial 1220 | . . 92 73 57 92 123 . . . . 25 118 88 438 688 443 177 227 1100 1100 1220 . Average 623 | . 118 177 112 210 187 387 . . . . 136 134 522 835 758 404 253 684 1144 1513 1247 . Maximum Alert Level 5 | . 1 . . 1 1 2 . . . . 1 . 3 4 3 2 2 5 5 5 5 . Low Security (%) 17 | 100 77 100 100 21 34 22 . . . . 56 100 17 . . . 31 . . . . . Level 1 27 | . 22 . . 78 65 33 . . . . 43 . 24 . . 47 68 43 . . . . Level 2 18 | . . . . . . 44 . . . . . . 17 36 6 52 . 32 . . . . Level 3 10 | . . . . . . . . . . . . . 41 52 93 . . . . . . . Level 4 16 | . . . . . . . . . . . . . . 10 . . . . 97 36 81 . Level 5 1 | . . . . . . . . . . . . . . . . . . . . . 18 . High Security . | . . . . . . . . . . . . . . . . . . . . . . . Max Security 9 | . . . . . . . . . . . . . . . . . . 24 2 63 . . Squads Dispatched 59 | . 3 1 . 1 1 8 . . . . 2 1 1 . . 6 . 7 6 21 1 . Investigation 12 | . 1 1 . 1 1 6 . . . . . . . . . 2 . . . . . . Extermination . | . . . . . . . . . . . . . . . . . . . . . . . Reinforcement 14 | . 2 . . . . 2 . . . . 2 1 . . . 4 . 1 . 1 1 . Assault 33 | . . . . . . . . . . . . . 1 . . . . 6 6 20 . . Garrison . | . . . . . . . . . . . . . . . . . . . . . . . Intercept . | . . . . . . . . . . . . . . . . . . . . . . . Searches Triggered . | . . . . . . . . . . . . . . . . . . . . . . . Data Miner Redirects 1 | . . . . . . . . . . . . . . . . 1 . . . . . . Construction Impeded . | . . . . . . . . . . . . . . . . . . . . . . . Haulers Reinforced 3 | . . . . . . . . . . . . . . . . 3 . . . . . . Active Scanning Responses . | . . . . . . . . . . . . . . . . . . . . . . . Cargo Convoy Interrupts . | . . . . . . . . . . . . . . . . . . . . . . . Stealth | -11 -10 -10 -9 -9 -8 -7 -7 -7 -7 -6 -6 -5 -5 -5 -4 -3 -3 -3 -2 -1 -1 -1 --------- Run | Jun Mat Min Mat Min Mat Fac Low Low Dat Pro Fac Fac Ext Cet Fac Res Qua Sec Res Acc Com Ac0 Distress Signals 18 | . . . 2 . . . . . . . . . 1 2 1 6 . 2 . 3 1 . Communications Jammed . | . . . . . . . . . . . . . . . . . . . . . . . Distress Signals . | . . . . . . . . . . . . . . . . . . . . . . . Times Spotted 429 | . 11 3 5 12 9 24 8 4 . 11 13 3 27 22 11 30 13 46 7 109 30 31 Peak Tracking Total 43 | . 9 3 6 3 5 8 7 4 . 5 8 3 5 5 11 11 7 28 12 43 16 32 Tactical Retreats 50 | . 1 . . 1 1 5 3 1 . 2 3 . . . 1 4 4 6 . 10 5 3 Traps | -11 -10 -10 -9 -9 -8 -7 -7 -7 -7 -6 -6 -5 -5 -5 -4 -3 -3 -3 -2 -1 -1 -1 ------- Run | Jun Mat Min Mat Min Mat Fac Low Low Dat Pro Fac Fac Ext Cet Fac Res Qua Sec Res Acc Com Ac0 Traps Triggered 18 | . . . . 1 . 1 . . . . 1 . 4 . 1 3 . . 1 3 3 . Indirectly . | . . . . . . . . . . . . . . . . . . . . . . . Trap Hack Attempts . | . . . . . . . . . . . . . . . . . . . . . . . Triggered . | . . . . . . . . . . . . . . . . . . . . . . . Disarmed . | . . . . . . . . . . . . . . . . . . . . . . . Reprogrammed . | . . . . . . . . . . . . . . . . . . . . . . . Reused . | . . . . . . . . . . . . . . . . . . . . . . . Traps Extracted . | . . . . . . . . . . . . . . . . . . . . . . . Installed . | . . . . . . . . . . . . . . . . . . . . . . . Triggered . | . . . . . . . . . . . . . . . . . . . . . . . Machines | -11 -10 -10 -9 -9 -8 -7 -7 -7 -7 -6 -6 -5 -5 -5 -4 -3 -3 -3 -2 -1 -1 -1 ---------- Run | Jun Mat Min Mat Min Mat Fac Low Low Dat Pro Fac Fac Ext Cet Fac Res Qua Sec Res Acc Com Ac0 Machines Disabled 18 | . . . . . . 1 . . . . . . 1 1 . . 1 6 1 1 4 2 Max in Single Turn 1 | . . . . . . 1 . . . . . . 1 . . . 1 1 1 1 1 1 Machines Repaired . | . . . . . . . . . . . . . . . . . . . . . . . Machines Sabotaged . | . . . . . . . . . . . . . . . . . . . . . . . Overloaded Fab Kills . | . . . . . . . . . . . . . . . . . . . . . . . Hacking | -11 -10 -10 -9 -9 -8 -7 -7 -7 -7 -6 -6 -5 -5 -5 -4 -3 -3 -3 -2 -1 -1 -1 --------- Run | Jun Mat Min Mat Min Mat Fac Low Low Dat Pro Fac Fac Ext Cet Fac Res Qua Sec Res Acc Com Ac0 Machines Accessed 39 | . 3 1 . 2 3 8 . . 3 1 2 1 1 1 1 3 2 1 2 1 3 . Terminals 26 | . 2 1 . . 2 5 . . . 1 1 1 1 1 1 2 1 1 2 1 3 . Fabricators 3 | . . . . . . 1 . . . . 1 . . . . 1 . . . . . . Repair Stations . | . . . . . . . . . . . . . . . . . . . . . . . Recycling Units 4 | . 1 . . . 1 2 . . . . . . . . . . . . . . . . Scanalyzers . | . . . . . . . . . . . . . . . . . . . . . . . Garrison Access 1 | . . . . . . . . . . . . . . . . . 1 . . . . . Total Hacks 84 | . 10 2 . 2 3 17 . . 21 1 4 1 1 1 4 3 4 1 3 1 5 . Successful 49 | . 2 1 . 2 3 4 . . 21 1 3 1 . 1 2 3 2 1 1 . 1 . Failed 35 | . 8 1 . . . 13 . . . . 1 . 1 . 2 . 2 . 2 1 4 . Catastrophic 12 | . 2 1 . . . 5 . . . . 1 . 1 . . . . . 1 . 1 . Database Lockouts . | . . . . . . . . . . . . . . . . . . . . . . . Manual 37 | . 10 1 . . 2 12 . . . . 1 1 1 1 4 2 2 . . . . . Terminals 45 | . 7 2 . . 2 11 . . . 1 1 1 1 1 4 2 2 1 3 1 5 . Fabricators 6 | . . . . . . 2 . . . . 3 . . . . 1 . . . . . . Repair Stations . | . . . . . . . . . . . . . . . . . . . . . . . Recycling Units 8 | . 3 . . . 1 4 . . . . . . . . . . . . . . . . Scanalyzers . | . . . . . . . . . . . . . . . . . . . . . . . Garrison Access 2 | . . . . . . . . . . . . . . . . . 2 . . . . . Terminal Hacks 40 | . 1 1 . 2 2 1 . . 21 1 1 1 . 1 2 2 1 1 1 . 1 . Record 3 | . . . . . . . . . 2 1 . . . . . . . . . . . . Part Schematic 10 | . . . . . . . . . 10 . . . . . . . . . . . . . Robot Schematic 6 | . . . . . . . . . 6 . . . . . . . . . . . . . Prototype ID Bank 3 | . . . . . . . . . 3 . . . . . . . . . . . . . Open Door 6 | . . . . 2 . . . . . . . . . 1 . 1 . 1 . . 1 . Level Access Points 2 | . . . . . 1 . . . . . . . . . 1 . . . . . . . Branch Access Points 5 | . 1 . . . . 1 . . . . 1 1 . . . 1 . . . . . . Terminal Index 1 | . . . . . . . . . . . . . . . 1 . . . . . . . Alert Level 1 | . . . . . . . . . . . . . . . . . 1 . . . . . Locate Traps 1 | . . . . . . . . . . . . . . . . . . . 1 . . . Hauler Manifests 1 | . . . . . 1 . . . . . . . . . . . . . . . . . Zone Layout 1 | . . 1 . . . . . . . . . . . . . . . . . . . . Fabricator Hacks 3 | . . . . . . 1 . . . . 2 . . . . . . . . . . . Network Status 2 | . . . . . . 1 . . . . 1 . . . . . . . . . . . Build 1 | . . . . . . . . . . . 1 . . . . . . . . . . . Repair Station Hacks . | . . . . . . . . . . . . . . . . . . . . . . . Recycling Unit Hacks . | . . . . . . . . . . . . . . . . . . . . . . . Scanalyzer . | . . . . . . . . . . . . . . . . . . . . . . . Garrison Access Hacks . | . . . . . . . . . . . . . . . . . . . . . . . Unauthorized Hacks 6 | . 1 . . . 1 2 . . . . . . . . . 1 1 . . . . . Terminals 1 | . . . . . . 1 . . . . . . . . . . . . . . . . Search 1 | . . . . . . 1 . . . . . . . . . . . . . . . . Fabricators 1 | . . . . . . . . . . . . . . . . 1 . . . . . . Liberate 1 | . . . . . . . . . . . . . . . . 1 . . . . . . Repair Stations . | . . . . . . . . . . . . . . . . . . . . . . . Recycling Units 3 | . 1 . . . 1 1 . . . . . . . . . . . . . . . . Tunnel 3 | . 1 . . . 1 1 . . . . . . . . . . . . . . . . Scanalyzers . | . . . . . . . . . . . . . . . . . . . . . . . Garrison Access 1 | . . . . . . . . . . . . . . . . . 1 . . . . . Reprogram 1 | . . . . . . . . . . . . . . . . . 1 . . . . . Data Cores Recovered . | . . . . . . . . . . . . . . . . . . . . . . . Used . | . . . . . . . . . . . . . . . . . . . . . . . Hacking Detections 24 | . 3 1 . . . 8 . . . . 2 . 1 . 1 1 2 . 1 1 3 . Full Trace Events 6 | . 1 1 . . . 4 . . . . . . . . . . . . . . . . Feedback Events 2 | . . . . . . 2 . . . . . . . . . . . . . . . . Corruption 1 | . . . . . . 1 . . . . . . . . . . . . . . . . Hackware Fried 1 | . . . . . . 1 . . . . . . . . . . . . . . . . Feedback Blocked . | . . . . . . . . . . . . . . . . . . . . . . . Robot Schematics Acquired 6 | . . . . . . . . . 6 . . . . . . . . . . . . . Robots Built . | . . . . . . . . . . . . . . . . . . . . . . . Authchips . | . . . . . . . . . . . . . . . . . . . . . . . Time . | . . . . . . . . . . . . . . . . . . . . . . . Total Robot Build Rating . | . . . . . . . . . . . . . . . . . . . . . . . Part Schematics Acquired 10 | . . . . . . . . . 10 . . . . . . . . . . . . . Parts Built 2 | . . . . . . . . . . . 2 . . . . . . . . . . . Authchips . | . . . . . . . . . . . . . . . . . . . . . . . Time 128 | . . . . . . . . . . . 128 . . . . . . . . . . . Total Part Build Rating 16 | . . . . . . . . . . . 16 . . . . . . . . . . . Parts Repaired . | . . . . . . . . . . . . . . . . . . . . . . . Time . | . . . . . . . . . . . . . . . . . . . . . . . Parts Recycled . | . . . . . . . . . . . . . . . . . . . . . . . Recycled Matter . | . . . . . . . . . . . . . . . . . . . . . . . Retrieved Matter . | . . . . . . . . . . . . . . . . . . . . . . . Retrieved Components . | . . . . . . . . . . . . . . . . . . . . . . . Parts Scanalyzed . | . . . . . . . . . . . . . . . . . . . . . . . Part Schematics Acquired . | . . . . . . . . . . . . . . . . . . . . . . . Parts Damaged . | . . . . . . . . . . . . . . . . . . . . . . . Bothacking | -11 -10 -10 -9 -9 -8 -7 -7 -7 -7 -6 -6 -5 -5 -5 -4 -3 -3 -3 -2 -1 -1 -1 ------------ Run | Jun Mat Min Mat Min Mat Fac Low Low Dat Pro Fac Fac Ext Cet Fac Res Qua Sec Res Acc Com Ac0 Used RIF Installer . | . . . . . . . . . . . . . . . . . . . . . . . Robots Hacked . | . . . . . . . . . . . . . . . . . . . . . . . Non-combat . | . . . . . . . . . . . . . . . . . . . . . . . Combat . | . . . . . . . . . . . . . . . . . . . . . . . Robot Hacks Applied . | . . . . . . . . . . . . . . . . . . . . . . . Relay Couplers Released . | . . . . . . . . . . . . . . . . . . . . . . . Fabnet Peak Effective % . | . . . . . . . . . . . . . . . . . . . . . . . Robots Rewired 10 | . . . . . . . . . . . . . 10 . . . . . . . . . Allies Hacked . | . . . . . . . . . . . . . . . . . . . . . . . Hacks Repelled . | . . . . . . . . . . . . . . . . . . . . . . . Allies | -11 -10 -10 -9 -9 -8 -7 -7 -7 -7 -6 -6 -5 -5 -5 -4 -3 -3 -3 -2 -1 -1 -1 -------- Run | Jun Mat Min Mat Min Mat Fac Low Low Dat Pro Fac Fac Ext Cet Fac Res Qua Sec Res Acc Com Ac0 Total Allies 88 | . . . . 4 . . . . . 1 . . 20 5 . 3 . . 12 35 8 . Largest Group 16 | . . . . 4 . . . . . 1 . . 14 16 . 3 . . 1 7 2 . Highest-Rated Group 923 | . . . . 71 . . . . . 96 . . 565 923 . 141 . . 14 100 29 . Highest-Rated Ally 159 | . . . . 31 . . . . . 96 . . 159 159 . 47 . . 14 15 15 . Total Orders . | . . . . . . . . . . . . . . . . . . . . . . . Ally Attacks 298 | . . . . 19 . . . . . 5 . . 115 93 . 3 . . . 63 . . Total Damage 6529 | . . . . 253 . . . . . 312 . . 2109 2486 . 72 . . . 1297 . . Kills 41 | . . . . 2 . . . . . 2 . . 12 19 . . . . . 6 . . Allies Corrupted 3 | . . . . . . . . . . . . . . . . . . . . 3 . . Allies Melted . | . . . . . . . . . . . . . . . . . . . . . . . Intel | -11 -10 -10 -9 -9 -8 -7 -7 -7 -7 -6 -6 -5 -5 -5 -4 -3 -3 -3 -2 -1 -1 -1 ------- Run | Jun Mat Min Mat Min Mat Fac Low Low Dat Pro Fac Fac Ext Cet Fac Res Qua Sec Res Acc Com Ac0 Robot Analysis Total . | . . . . . . . . . . . . . . . . . . . . . . . Derelict Logs Recovered 4 | . . 1 . 1 . . 1 1 . . . . . . . . . . . . . . Drone Launches . | . . . . . . . . . . . . . . . . . . . . . . . Drone Recoveries . | . . . . . . . . . . . . . . . . . . . . . . . Exploration | -11 -10 -10 -9 -9 -8 -7 -7 -7 -7 -6 -6 -5 -5 -5 -4 -3 -3 -3 -2 -1 -1 -1 ------------- Run | Jun Mat Min Mat Min Mat Fac Low Low Dat Pro Fac Fac Ext Cet Fac Res Qua Sec Res Acc Com Ac0 Turns Passed 4767 | 16 104 30 65 216 58 220 97 55 23 153 201 148 553 237 87 763 200 299 214 501 321 206 Spaces Moved 10051 | 30 230 66 155 579 148 600 330 203 83 520 542 476 755 266 233 1261 483 672 382 1031 604 402 Core 45 | 30 14 . . . . . . . . . . . . . . . . 1 . . . . Treads . | . . . . . . . . . . . . . . . . . . . . . . . Legs 2758 | . . . . . . . . . . . . . . . . . . 339 382 1031 604 402 Wheels . | . . . . . . . . . . . . . . . . . . . . . . . Hover . | . . . . . . . . . . . . . . . . . . . . . . . Flight 7248 | . 216 66 155 579 148 600 330 203 83 520 542 476 755 266 233 1261 483 332 . . . . Fastest Speed 19 | 50 37 37 34 34 31 28 27 27 27 27 23 21 23 21 19 20 27 30 30 30 30 30 Average Speed 29 | 50 37 37 35 34 31 28 27 27 27 29 25 24 27 27 24 26 32 31 30 30 30 30 Slowest Speed 50 | 50 50 37 37 34 34 37 28 27 27 31 30 25 35 37 25 32 37 50 30 30 30 30 Overloaded Moves . | . . . . . . . . . . . . . . . . . . . . . . . Propulsion Burnouts . | . . . . . . . . . . . . . . . . . . . . . . . Robots Hopped 61 | . 2 . 4 6 . 8 1 . . 6 4 1 13 1 5 2 6 2 . . . . Cave-ins Triggered . | . . . . . . . . . . . . . . . . . . . . . . . Teleports 3 | . . . . . . . . . . . . . . . . . . 1 . 1 1 . Exploration Rate (%) 39 | 3 39 23 25 96 20 30 50 45 69 68 19 13 78 64 12 37 60 57 6 32 32 36 Regions Visited 22 Branch Regions 12 Pre-discovered Areas 5 | . 1 . . 1 1 1 . . 1 . . . . . . . . . . . . . Known Exits Taken 10 | . 1 . 1 . 1 1 . . . . 1 1 . . 1 1 1 1 . . . . Unknown Exits Taken 12 | 1 . 1 . 1 . . 1 1 1 1 . . 1 1 . . . . 1 1 1 . Scrap Searched 15 | . . . . 3 . . 6 3 . 3 . . . . . . . . . . . . Spaces Dug 253 | . 10 7 . 32 32 19 . . . . 6 7 59 24 5 6 4 1 12 21 3 5 Terrain Destroyed 332 | . 10 7 . 46 32 42 . . . . 6 7 73 52 5 6 4 1 12 21 3 5 Melee 74 | . . . . . . 5 . . . . 6 7 1 . 5 6 4 1 12 19 3 5 Projectile 2 | . . . . . . . . . . . . . . . . . . . . 2 . . AOE 256 | . 10 7 . 46 32 37 . . . . . . 72 52 . . . . . . . . Terrain Rammed . | . . . . . . . . . . . . . . . . . . . . . . . Walls Destroyed . | . . . . . . . . . . . . . . . . . . . . . . . Machines Disabled . | . . . . . . . . . . . . . . . . . . . . . . . Actions | -11 -10 -10 -9 -9 -8 -7 -7 -7 -7 -6 -6 -5 -5 -5 -4 -3 -3 -3 -2 -1 -1 -1 --------- Run | Jun Mat Min Mat Min Mat Fac Low Low Dat Pro Fac Fac Ext Cet Fac Res Qua Sec Res Acc Com Ac0 Total 11370 | 30 241 70 161 586 157 622 331 202 82 514 578 495 1030 412 247 1648 511 740 449 1132 691 441 Wait 773 | . . . . 1 . . . . . . 8 . 122 128 . 330 22 35 47 30 33 17 Move 9918 | 29 225 65 147 567 147 583 327 202 82 508 534 473 734 263 222 1257 470 668 381 1030 602 402 Hop 50 | . 2 . 3 5 . 8 1 . . 5 3 1 7 1 5 1 6 2 . . . . Pick Up 33 | 1 4 2 5 . 1 2 . . . . 4 3 . 1 . 5 . 4 1 . . . Fast Attach 87 | . 4 . 2 4 . 4 2 . . . 8 1 6 7 2 13 3 10 6 4 11 . Attach 49 | . 2 1 . 2 4 9 . . . 1 6 1 3 1 1 6 2 3 . 4 3 . Detach 16 | . 1 1 . 2 2 1 . . . . 1 . . . . 1 2 2 . 1 2 . Swap 28 | . 1 . . . 1 3 1 . . . 4 3 6 1 4 2 . . . 2 . . Drop 53 | . 1 . 4 1 . 2 . . . . 2 4 4 2 4 7 1 6 . 3 12 . Fire 31 | . 1 1 . 4 2 5 . . . . . . 12 4 . . . . . 1 1 . Melee 205 | . . . . . . 5 . . . . 8 9 26 4 8 26 5 8 14 44 26 22 Ram . | . . . . . . . . . . . . . . . . . . . . . . . Kick 2 | . . . . . . . . . . . . . . . . . . 2 . . . . Crush . | . . . . . . . . . . . . . . . . . . . . . . . Escape Stasis 60 | . . . . . . . . . . . . . 45 . 1 . . . . 13 1 . Rewire 65 | . . . . . . . . . . . . . 65 . . . . . . . . . Trap . | . . . . . . . . . . . . . . . . . . . . . . . Miscellaneous . | . . . . . . . . . . . . . . . . . . . . . . . Route ------- -11/Junkyard -10/Materials (discovered 3 exits: [*Mat] / *Min x2) -10/Mines -9/Materials -9/Mines (discovered 2 exits: *Mat x2) -8/Materials (discovered 3 exits: *Fac x3) -7/Factory (discovered 2 exits: *Low x2) -7/Lower Caves -7/Lower Caves (discovered 2 exits: *Fac / *Dat) -7/Data Miner -6/Proximity Caves -6/Factory (discovered 5 exits: *Fac x3 / Low x2) -5/Factory (discovered 5 exits: *Fac / Upp x2 / *Ext x2) -5/Extension (discovered 2 exits: *Fac / *Cet) -5/Cetus (discovered 2 exits: *Fac / [*Arc]) -4/Factory (discovered 4 exits: *Res x4) -3/Research (discovered 5 exits: *Res x2 / Arm / *Qua x2) -3/Quarantine -3/Section 7 -2/Research -1/Access -1/Command (discovered 2 exits: [*Sur] / [*Ac0]) -1/Access_0 History --------- Turn | Location | Event 6 | -11/Junkyard | Discovered new exit (range 15) 17 | -11/Junkyard | Entered Materials 69 | -10/Materials | Discovered new exit (range 15) 83 | -10/Materials | Identified exit to Mines 121 | -10/Materials | Entered Mines 131 | -10/Mines | Met a Derelict bent on vengeance 150 | -10/Mines | Assembled infested the area 150 | -10/Mines | Discovered new exit (range 6) 151 | -10/Mines | Entered Materials 151 | -9/Materials | Evolved 2 slots: Propulsion x1, Utility x1 152 | -9/Materials | Identified exit to Mines 216 | -9/Materials | Entered Mines 223 | -9/Mines | Found a hidden stash of uninstalled traps 304 | -9/Mines | Build established: Mutant 313 | -9/Mines | Escorted by a lone wolf Derelict 326 | -9/Mines | Discovered new exit (range 7) 377 | -9/Mines | Assisted by bots powering up and referring to "LRC-V3" 392 | -9/Mines | Met a Derelict who couldn't figure out how to use a Trap Extractor 405 | -9/Mines | Learned location of Zion (-6) 417 | -9/Mines | Discovered new exit (range 13) 425 | -9/Mines | Received a Rocket Launcher from a helpful Derelict 428 | -9/Mines | Met a Derelict shopkeep closing up shop 432 | -9/Mines | Entered Materials 432 | -8/Materials | Evolved 2 slots: Propulsion x1, Utility x1 478 | -8/Materials | Identified exit to Factory 490 | -8/Materials | Entered Factory 490 | -7/Factory | Evolved 2 slots: Propulsion x1, Utility x1 594 | -7/Factory | Lost 6 parts (1p2n1u2w) 616 | -7/Factory | Identified exit to Lower Caves 616 | -7/Factory | Hacking Suite fried by hacking feedback 710 | -7/Factory | Entered Lower Caves 719 | -7/Lower Caves | Learned location of 2 exits from Factory 791 | -7/Lower Caves | Discovered new exit (range 9) 807 | -7/Lower Caves | Entered another Lower Caves area 810 | -7/Lower Caves | Discovered new exit (range 7) 816 | -7/Lower Caves | Learned Factory non-interactive machine intel 857 | -7/Lower Caves | Discovered new exit (range 15) 862 | -7/Lower Caves | Entered Data Miner 862 | -7/Data Miner | Discovered new exit (range 6) 868 | -7/Data Miner | Met Data Miner 874 | -7/Data Miner | Learned location of Section 7 (-3) 874 | -7/Data Miner | Acquired the access code to Warlord's prototype stash 878 | -7/Data Miner | Received God Mode back door access code from Data Miner 885 | -7/Data Miner | Entered Proximity Caves 887 | -6/Proximity Caves | Attracted the attention of an 0b10 checkpoint 890 | -6/Proximity Caves | Escorted by Enhanced Grunt 1030 | -6/Proximity Caves | Discovered new exit (range 9) 1038 | -6/Proximity Caves | Entered Factory 1038 | -6/Factory | Evolved 2 slots: Power x1, Propulsion x1 1039 | -6/Factory | Identified exit to Factory 1040 | -6/Factory | Loaded intel: 228 non-interactive machine locations 1044 | -6/Factory | Lost 3 parts (1n2u) 1075 | -6/Factory | Spotted B-75 Beast 1111 | -6/Factory | Lost 3 parts (3n) 1183 | -6/Factory | Fabricated Antimissile System? 1187 | -6/Factory | Build established: Sprinter 1235 | -6/Factory | Identified exit to Lower Caves 1237 | -6/Factory | Discovered exit to Factory (range 8) 1239 | -6/Factory | Entered another Factory area 1239 | -5/Factory | Evolved 2 slots: Propulsion x1, Utility x1 1319 | -5/Factory | Identified exit to Upper Caves 1319 | -5/Factory | Identified exit to Extension 1328 | -5/Factory | Discovered new exit (range 15) 1387 | -5/Factory | Entered Extension 1398 | -5/Extension | Rescued A7 1419 | -5/Extension | Rescued a captive Derelict 1422 | -5/Extension | Rescued a captive Derelict 1493 | -5/Extension | Build established: Hacker-Sprinter 1527 | -5/Extension | Rescued a captive Derelict 1528 | -5/Extension | Rescued a captive Derelict 1597 | -5/Extension | Spotted B-75 Beast 1610 | -5/Extension | Spotted B-75 Beast 1621 | -5/Extension | Destroyed B-75 Beast 1632 | -5/Extension | Destroyed B-75 Beast 1643 | -5/Extension | Rescued a captive Derelict 1643 | -5/Extension | Rescued a captive Derelict 1687 | -5/Extension | First assault squad dispatched 1779 | -5/Extension | Lost 10 parts (1p8n1u) 1814 | -5/Extension | Rescued a captive Derelict 1829 | -5/Extension | Rescued a captive Derelict 1830 | -5/Extension | Rescued a captive Derelict 1846 | -5/Extension | Discovered new exit (range 10) 1846 | -5/Extension | Discovered new exit (range 6) 1940 | -5/Extension | Entered Cetus 1940 | -5/Cetus | Accompanied by 14 allies (A7) 1945 | -5/Cetus | Acquired a Cetus Manufacturing Module code from A7 1964 | -5/Cetus | Spotted Cetus Guard 1964 | -5/Cetus | Spotted Cetus Guard 1972 | -5/Cetus | Spotted Cetus Guard 1974 | -5/Cetus | Spotted Cetus Guard 1977 | -5/Cetus | Allies destroyed Cetus Guard 1978 | -5/Cetus | Allies destroyed Cetus Guard 1980 | -5/Cetus | Allies destroyed Cetus Guard 1982 | -5/Cetus | Allies destroyed Cetus Guard 1992 | -5/Cetus | Started Cetus Manufacturing Module 2017 | -5/Cetus | Manufactured an Enhanced Grunt 2042 | -5/Cetus | Manufactured an Enhanced Grunt 2067 | -5/Cetus | Manufactured an Enhanced Grunt 2092 | -5/Cetus | Manufactured an Enhanced Grunt 2110 | -5/Cetus | Discovered new exit (range 15) 2117 | -5/Cetus | Manufactured an Enhanced Grunt 2146 | -5/Cetus | Spotted Cetus Guard 2146 | -5/Cetus | Spotted Cetus Guard 2147 | -5/Cetus | Spotted Cetus Guard 2148 | -5/Cetus | Allies destroyed Cetus Guard 2149 | -5/Cetus | Spotted Cetus Guard 2152 | -5/Cetus | Allies destroyed Cetus Guard 2159 | -5/Cetus | Allies destroyed Cetus Guard 2163 | -5/Cetus | Allies destroyed Cetus Guard 2164 | -5/Cetus | Discovered new exit (range 15) 2175 | -5/Cetus | Met Revision 17 2177 | -5/Cetus | Entered Factory 2177 | -4/Factory | Evolved 2 slots: Propulsion x1, Utility x1 2180 | -4/Factory | Identified exit to Research 2264 | -4/Factory | Entered Research 2264 | -3/Research | Evolved 2 slots: Propulsion x1, Utility x1 2361 | -3/Research | Identified exit to Armory 2361 | -3/Research | Identified exit to Quarantine 2461 | -3/Research | Incoming investigation squad redirected 2464 | -3/Research | Revision forces began assault on 0b10 2497 | -3/Research | Met up with Revision 17++ 2667 | -3/Research | Found Prototype Slashing Weapon 2667 | -3/Research | Identified Vibroblade 2670 | -3/Research | Found Vibroblade 2689 | -3/Research | Discovered new exit (range 16) 2713 | -3/Research | Identified exit to Research 2728 | -3/Research | Lost 4 parts (1p3n) 2729 | -3/Research | Discovered exit to Research (range 15) 2775 | -3/Research | Found Prototype Launcher 2775 | -3/Research | Identified Tactical Quantum Warhead 2964 | -3/Research | Research terminal network offline 3027 | -3/Research | Entered Quarantine 3107 | -3/Quarantine | Found Alien Slashing Weapon 3107 | -3/Quarantine | Identified Sigix Broadsword 3108 | -3/Quarantine | Lost 4 parts (4n) 3117 | -3/Quarantine | Discovered exit to Research (range 16) 3137 | -3/Quarantine | Found Alien Artifact 3137 | -3/Quarantine | Identified Core Reset Matrix 3137 | -3/Quarantine | Used Core Reset Matrix 3141 | -3/Quarantine | Detected hypermatrix surge 3141 | -3/Quarantine | Sensed 6 artifacts in vicinity 3180 | -3/Quarantine | Spotted Fortress 3203 | -3/Quarantine | Discovered new exit (range 6) 3205 | -3/Quarantine | Identified exit to Section 7 3227 | -3/Quarantine | Entered Section 7 3228 | -3/Section 7 | Sensed 23 artifacts in vicinity 3246 | -3/Section 7 | Spotted S7 Guard 3261 | -3/Section 7 | Found Core Membrane 3261 | -3/Section 7 | Installed Core Membrane, gained immunity to corruption 3305 | -3/Section 7 | Discovered exit to Research (range 8) 3315 | -3/Section 7 | Found Integrated Dissipator 3315 | -3/Section 7 | Installed Integrated Dissipator, increased core heat dissipation (+20) 3358 | -3/Section 7 | Released all parts (13) 3359 | -3/Section 7 | Integrated with Sigix Exoskeleton 3368 | -3/Section 7 | Spotted Executioner 3368 | -3/Section 7 | Spotted Executioner 3372 | -3/Section 7 | Spotted Striker 3372 | -3/Section 7 | Spotted Striker 3396 | -3/Section 7 | Found Transdimensional Reconstructor 3400 | -3/Section 7 | Found Transdimensional Reconstructor 3401 | -3/Section 7 | Found Hpw. Transdimensional Reconstructor 3464 | -3/Section 7 | Spotted B-99 Colossus 3477 | -3/Section 7 | Found Core Expander 3477 | -3/Section 7 | Installed Core Expander, added new Propulsion slot 3479 | -3/Section 7 | Found Core Expander 3479 | -3/Section 7 | Installed Core Expander, added new Propulsion slot 3481 | -3/Section 7 | Found Core Expander 3481 | -3/Section 7 | Installed Core Expander, added new Weapon slot 3502 | -3/Section 7 | Warped through subspace 3502 | -3/Section 7 | Spotted Alpha 7 3502 | -3/Section 7 | Spotted Alpha 7 3526 | -3/Section 7 | Entered Research 3526 | -2/Research | Evolved 2 slots: Utility x2 3531 | -2/Research | Emitted hypermatrix ping 3536 | -2/Research | Assembled emerged from beneath the floor 3553 | -2/Research | Assembled emerged from beneath the floor 3666 | -2/Research | Discovered new exit (range 18) 3670 | -2/Research | Build established: Alien-Sigix 3740 | -2/Research | Entered Access 3740 | -1/Access | Evolved 2 slots: Power x1, Weapon x1 3745 | -1/Access | Emitted hypermatrix ping 3750 | -1/Access | Assembled emerged from beneath the floor 3828 | -1/Access | Assembled emerged from beneath the floor 3964 | -1/Access | Assembled emerged from beneath the floor 4052 | -1/Access | Assembled emerged from beneath the floor 4054 | -1/Access | Spotted B-99 Colossus 4143 | -1/Access | Spotted Striker 4160 | -1/Access | Spotted Executioner 4160 | -1/Access | Spotted Striker 4160 | -1/Access | Spotted Executioner 4161 | -1/Access | Spotted Investigator 4161 | -1/Access | Scanned by Researcher 4162 | -1/Access | Warped through subspace 4211 | -1/Access | Spotted B-99 Colossus 4214 | -1/Access | Assembled emerged from beneath the floor 4222 | -1/Access | Discovered new exit (range 17) 4229 | -1/Access | Spotted B-99 Colossus 4229 | -1/Access | Spotted B-99 Colossus 4238 | -1/Access | Spotted Striker 4241 | -1/Access | Entered Command 4246 | -1/Command | Emitted hypermatrix ping 4251 | -1/Command | Assembled emerged from beneath the floor 4353 | -1/Command | Spotted M Guard 4353 | -1/Command | Spotted M Guard 4353 | -1/Command | Spotted Combat Programmer 4353 | -1/Command | Spotted Combat Programmer 4355 | -1/Command | Sigix Exoskeleton integrity reduced to 80% 4383 | -1/Command | Met MAIN.C 4386 | -1/Command | 0b10 Conduit disabled 4391 | -1/Command | Sigix Exoskeleton integrity reduced to 60% 4409 | -1/Command | Discovered new exit (range 17) 4409 | -1/Command | MAIN.C activated Command garrisons 4437 | -1/Command | Core integrity fell below 50% 4513 | -1/Command | Found Prototype Reactor 4513 | -1/Command | Identified Vortex Chain Reactor 4538 | -1/Command | Warped through subspace to slip node 4538 | -1/Command | Discovered new exit (range 5) 4562 | -1/Command | Entered Access_0 4563 | -1/Access_0 | Sensed 3 artifacts in vicinity 4563 | -1/Access_0 | Met Architect 4594 | -1/Access_0 | Subspace Access Node disabled 4619 | -1/Access_0 | A6 warped into view 4683 | -1/Access_0 | Sigix Exoskeleton integrity reduced to 40% 4695 | -1/Access_0 | Core integrity fell below 20% 4697 | -1/Access_0 | A5 warped into view 4708 | -1/Access_0 | Singularity Gate disabled 4734 | -1/Access_0 | Sigix Exoskeleton integrity reduced to 20% 4768 | -1/Access_0 | Exoskeleton Destroyed Last Messages --------------- 04721_ Architect Shell breached. 04724_ Penetrated by Quantum Shear. 04724_ Architect Logs disabled. 04730_ A6 follow-up attacks with Unknown Piercing Weapon. 04732_ Quantum Shear penetrates Wall. 04733_ Critical hit (Burn: +16). 04733_ A6 follow-up attacks with Unknown Piercing Weapon. 04734_ Exo-853F: "Integrity reduced to 20%, immediate ERK application recommended to prevent critical system failure." 04735_ A6 follow-up attacks with Unknown Piercing Weapon. 04745_ Critical hit (Burn: +18). 04746_ Critical hit (Impale). 04754_ Critical hit (Burn: +37). 04756_ A6 follow-up attacks with Unknown Piercing Weapon. 04760_ Critical hit (Burn: +16). 04760_ Critical hit (Burn: +37). 04761_ A6 follow-up attacks with Unknown Piercing Weapon. 04763_ Critical hit (Burn: +37). 04766_ A6 follow-up attacks with Unknown Piercing Weapon. 04768_ Sigix Exoskeleton destroyed. Map ----- +----------------------------------------------------+ | ??################ ###### ####?????? | | ???############### #### ## ####?????? | | ???############### # ## #####????? | | ???##################### ####?????? | | ????##################### #### # ####?????? | | ?????#################### #### ## ####?????? | | ?????################### ####### ####?????? | | ??????################## ####### ####?????? | | ???????################# ####### ##????? | | ????????################" ##### #?????? | | ????????#################g" ###### ##?????? | | ????????################# # ##### ##?????? | | ???????##################g### ##### ## ##?????? | | ????????#################g### #### #####?????? | | ????????#################g### ### ####??????? | | ???????##################h"### ### #####?????? | | ????????#################g"#### ## ###??????? | | ????????#################p##### ###??????? | | ???????##################g##### #####?????? | | ????????#################h###### ### #####??????? | | ???????##################h###### #########??????? | | ???????##################h###### #########??????? | | ???????##################p###### #########?????? | | ???????#################;0####### #########??????? | | ???????#################pp#################??????? | | ??????################ X ###############?????? | | ??????################ ##############??????? | | ???????############### ###############?????? | | ???????############### " " ##############??????? | | ???????############### " " ##############??????? | | ???????############### """ ##############??????? | | ???????############### ##############??????? | | ????????###################################??????? | | ????????##################################???????? | | ????????##################################???????? | | ?????????#################################???????? | | ??????????###############################????????? | | ??????????##############################?????????? | | ???????????#############################?????????? | | ????????????###########################??????????? | | ?????????????#########################???????????? | | ??????????????#######################????????????? | | ????????????????###################??????????????? | | ?????????????????#################???????????????? | | ????????????????????###########??????????????????? | | ?????????????????????????#???????????????????????? | | ?????????????????????????????????????????????????? | | ?????????????????????????????????????????????????? | | ?????????????????????????????????????????????????? | | ?????????????????????????????????????????????????? | +----------------------------------------------------+ Best States ------------- Heat Dissipation 132 Energy Generation 84 Energy Capacity 510 Matter Stores 300 Matter Capacity 300 Sight Range 16 Terrain Scan Density 10 Jamming Range 16 Power Amplification 20 Armor Coverage 600 Resistance: KI 50 Resistance: TH 50 Resistance: EX 50 Resistance: EM 50 Resistance: I 50 Resistance: S 50 Resistance: P 50 Power Shielding 33 Point Defense Rating 80 Evasion (%) 75 Targeting Accuracy 8 Melee Accuracy 13 Core Analysis 6 Armor Integrity Analysis 30 Offensive Hacking 42 Defensive Hacking 14 Authchip Count 1 Item Schematics ----------------- None Robot Schematics ------------------ None Fabricated ------------ Antimissile System | x2 | -6/Factory | Preloaded Alien Tech Used ----------------- Sigix Broadsword Core Reset Matrix Core Membrane Integrated Dissipator Sigix Exoskeleton Sigix Sheargun Core Expander Transdimensional Reconstructor High-powered Transdimensional Reconstructor Achievements -------------- Revolutionary Research Challenges ------------ None Game ------ Seed ThiefSupercompositeSteel Manual? 0 Play Time 01:30:50 Cumulative 276.3 hours Start 2023.06.04 @ 17:59:46 End 2023.06.04 @ 19:46:03 Sessions 1 Manual Loads 0 Difficulty Rogue Special Mode None Game No. 812 Rogue 812 Adventurer 0 Explorer 0 Win Type - Total 15 Types 8/0/5/2/0/0/0/0/0 Lore% 89 Gallery% 87 Achievement% 77 Wizard Run 0 Options --------- ASCII 0 Keyboard 0 Movement Numpad Keybinds 0 Fullscreen 1 Font 16/SmallcapsGlow Map View 75x55 Tactical HUD 1 Map Filters NONE Filters NONE Steam 1 RUN: 62d252b4-9f78-47bb-b764-5759501847b1